fUSD/lending_fUSD_20250826
["ID","MTS","AMOUNT","RATE_DAILY","PERIOD"]
[381414101,1756187528018,-428.7203944,0.000119,2]
[381414102,1756187528028,-65.89732439,0.00015,2]
[381414103,1756187528039,-793.64953261,0.00015,2]
[381414104,1756187528049,-151.0,0.00015,2]
[381414105,1756187528058,-859.546857,0.00015,2]
[381414106,1756187528068,-895.0,0.00016037,2]
[381414107,1756187528077,-173.76,0.00016144,2]
[381414108,1756187528086,-340.62506418,0.00016438,2]
[381414109,1756187528096,-808.39,0.00016438,2]
[381414110,1756187528105,-185.672383,0.00016438,2]
[381414111,1756187528115,-1150.71,0.00016438,2]
[381414112,1756187528124,-400.0,0.00016438,2]
[381414113,1756187528133,-185.672383,0.00016438,2]
[381414114,1756187528143,-859.546857,0.00016438,2]
[381414115,1756187528152,-185.672383,0.00016712,2]
[381414116,1756187528162,-821.81,0.00016712,2]
[381414117,1756187528171,-859.546857,0.00016712,2]
[381414118,1756187528180,-746.3,0.00016712,2]
[381414119,1756187528190,-799.99,0.00016712,2]
[381414120,1756187528199,-859.546857,0.00016712,2]
[381414121,1756187528209,-808.39,0.00016712,2]
[381414122,1756187528218,-185.672383,0.00016712,2]
[381414123,1756187528227,-1150.71,0.00016712,2]
[381414124,1756187528237,-185.672383,0.00016712,2]
[381414125,1756187528246,-859.546857,0.00016712,2]
[381414126,1756187528255,-185.672383,0.00016986,2]
[381414127,1756187528706,-821.81,0.00016986,2]
[381414128,1756187528725,-859.546857,0.00016986,2]
[381414129,1756187528737,-746.3,0.00016986,2]
[381414130,1756187528747,-799.99,0.00016986,2]
[381414131,1756187528757,-185.672383,0.00016986,2]
[381414132,1756187528766,-859.546857,0.00016986,2]
[381414133,1756187528775,-808.39,0.00016986,2]
[381414134,1756187528785,-1150.71,0.00016986,2]
[381414135,1756187528794,-185.672383,0.00016986,2]
[381414136,1756187528804,-859.546857,0.00016986,2]
[381414137,1756187528814,-782.54,0.0001726,2]
[381414138,1756187528824,-185.672383,0.0001726,2]
[381414139,1756187528833,-821.81,0.0001726,2]
[381414140,1756187528844,-859.546857,0.0001726,2]
[381414141,1756187528854,-799.99,0.0001726,2]
[381414142,1756187528864,-746.3,0.0001726,2]
[381414143,1756187528873,-185.672383,0.0001726,2]
[381414144,1756187528884,-859.546857,0.0001726,2]
[381414145,1756187528894,-808.39,0.0001726,2]
[381414146,1756187528904,-1150.71,0.0001726,2]
[381414147,1756187528913,-859.546857,0.0001726,2]
[381414148,1756187528923,-132.88993629,0.00017534,2]
[381414149,1756187528932,-916.56,0.00017534,2]
[381414150,1756187528942,-400.0,0.00017534,2]
[381414151,1756187528951,-400.0,0.00017534,2]
[381414152,1756187528961,-400.0,0.00017534,2]
[381414153,1756187528970,-400.0,0.00017534,2]
[381414154,1756187528980,-873.93,0.00017534,2]
[381414155,1756187528990,-465.57,0.00017534,2]
[381414156,1756187529001,-400.0,0.00017534,2]
[381414157,1756187529011,-587.99,0.00017534,2]
[381414158,1756187529021,-269.6,0.00017534,2]
[381414159,1756187529031,-1445.75,0.00017534,2]
[381414160,1756187529041,-727.77,0.00017534,2]
[381414161,1756187529051,-400.0,0.00017534,2]
[381414162,1756187529064,-852.08,0.00017534,2]
[381414163,1756187529077,-598.8,0.00017534,2]
[381414164,1756187529086,-400.0,0.00017534,2]
[381414165,1756187529096,-400.0,0.00017534,2]
[381414166,1756187529106,-400.0,0.00017534,2]
[381414167,1756187529115,-973.16,0.00017534,2]
[381414168,1756187529125,-999.47,0.00017534,2]
[381414169,1756187529135,-629.23,0.00017534,2]
[381414170,1756187529144,-579.22,0.00017534,2]
[381414171,1756187529154,-375.38,0.00017534,2]
[381414172,1756187529164,-400.0,0.00017534,2]
[381414173,1756187529174,-805.95,0.00017534,2]
[381414174,1756187529184,-400.0,0.00017534,2]
[381414175,1756187529195,-400.0,0.00017534,2]
[381414176,1756187529204,-1354.95,0.00017534,2]
[381414177,1756187529215,-400.0,0.00017534,2]
[381414178,1756187529224,-1163.52,0.00017534,2]
[381414179,1756187529234,-400.0,0.00017534,2]
[381414180,1756187529244,-1002.56,0.00017534,2]
[381414181,1756187529253,-400.0,0.00017534,2]
[381414182,1756187529263,-1628.22,0.00017534,2]
[381414183,1756187529272,-400.0,0.00017534,2]
[381414184,1756187529282,-250.0,0.00017534,2]
[381414185,1756187529292,-400.0,0.00017534,2]
[381414186,1756187529302,-493.68,0.00017534,2]
[381414187,1756187529314,-400.0,0.00017534,2]
[381414188,1756187529323,-1193.33,0.00017534,2]
[381414189,1756187529332,-3035.92582132,0.00017534,2]
[381414190,1756187529353,-4012.42417868,0.00017534,2]
[381414191,1756187529362,-400.0,0.00017534,2]
[381414192,1756187529371,-151.0,0.00017534,2]
[381414193,1756187529381,-734.28,0.00017534,2]
[381414194,1756187529391,-1293.64,0.00017534,2]
[381414195,1756187529401,-1150.62,0.00017534,2]
[381414196,1756187529411,-966.45,0.00017534,2]
[381414197,1756187529420,-400.0,0.00017534,2]
[381414198,1756187529430,-712.26,0.00017534,2]
[381414199,1756187529439,-282.19154085,0.00017534,2]
[381414200,1756187529494,-383.87296915,0.00016438,2]
[381414201,1756187529505,-475.67388785,0.00016438,2]
[381414202,1756187529514,-695.24256715,0.00017534,2]
[381414203,1756187529529,-152.385892,0.00017534,2]
[381414204,1756187529539,-220.04924935,0.00017534,2]
[381414205,1756187529553,-845.70075065,0.00017534,2]
[381414206,1756187529563,-726.6250789,0.00017534,2]
[381414207,1756187567431,895.8325189,0.00013034,3]
[381414208,1756187573246,-154.828964,0.00011696,2]
[381414209,1756187580978,-154.682072,0.00011696,2]
[381414210,1756187582408,-190.488964,0.00011696,2]
[381414211,1756187591514,-405.884954,0.00011637,2]
[381414249,1756188077920,154.0,0.00023,30]
[381414256,1756188348786,10000.0,0.00028767,120]
[381414267,1756188388244,10000.0,0.00028767,120]
[381414286,1756188624457,152.0,0.00021,30]
[381414303,1756188632983,-152.0,0.00013275,2]
[381414304,1756188632993,-250.0,0.00013275,2]
[381414305,1756188633002,-152.0,0.00013437,2]
[381414306,1756188633012,-250.0,0.00013598,2]
[381414307,1756188633021,-399.19,0.00013699,2]
[381414308,1756188633031,-152.0,0.00013814,2]
[381414309,1756188633040,-500.0,0.00014137,2]
[381414310,1756188633050,-152.0,0.00014137,2]
[381414311,1756188633059,-150.0,0.00014137,2]
[381414312,1756188633069,-300.0,0.00014137,2]
[381414313,1756188633080,-250.0,0.00014137,2]
[381414314,1756188633090,-61.23298619,0.0001433,2]
[381414315,1756188633104,-188.76701381,0.0001433,2]
[381414316,1756188633115,-178.41,0.00014574,2]
[381414317,1756188633124,-365.0,0.000146,2]
[381414318,1756188633134,-152.0,0.00014603,2]
[381414319,1756188633144,-2500.0,0.00014603,2]
[381414320,1756188633155,-178.54,0.00014806,2]
[381414321,1756188633165,-150.0,0.00014917,2]
[381414322,1756188633175,-300.0,0.00014917,2]
[381414323,1756188633187,-200.0,0.00014918,2]
[381414324,1756188633197,-13386.75789976,0.00014918,2]
[381414325,1756188633234,-348.90554005,0.00014918,2]
[381414326,1756188633293,-450.69656019,0.00014918,2]
[381414327,1756188633303,-237.59,0.00014918,2]
[381414328,1756188633314,-150.99,0.00014918,2]
[381414329,1756188633324,-150.99,0.00014918,2]
[381414330,1756188633334,-7623.20503732,0.00014918,2]
[381414331,1756188633346,-74222.42496268,0.00014918,2]
[381414332,1756188633356,-3451.35,0.00014918,2]
[381414333,1756188633366,-267.46074303,0.00014991,2]
[381414334,1756188633376,-975.29321237,0.000151,2]
[381414335,1756188633386,-210.77178712,0.000151,2]
[381414336,1756188633395,-429.57579269,0.00015115,2]
[381414337,1756188633405,-1000.0,0.00015181,2]
[381414338,1756188633415,-160.0,0.00015181,7]
[381414339,1756188633424,-1682.82,0.0001519,2]
[381414340,1756188633434,-1682.82,0.0001519,2]
[381414341,1756188633444,-1682.82,0.0001519,2]
[381414342,1756188633454,-1682.82,0.0001519,2]
[381414343,1756188633464,-1682.82,0.0001519,2]
[381414344,1756188633474,-1174.9,0.0001519,2]
[381414345,1756188633484,-1174.9,0.0001519,2]
[381414346,1756188633494,-301.92471239,0.00015199,2]
[381414347,1756188633504,-500.0,0.00015199,2]
[381414348,1756188633514,-249.54766253,0.00015199,2]
[381414349,1756188633524,-264.1534976,0.00015199,2]
[381414350,1756188633533,-500.0,0.00015199,2]
[381414351,1756188633543,-152.22292157,0.00015199,2]
[381414352,1756188633553,-500.0,0.00015199,2]
[381414353,1756188633563,-500.0,0.00015199,2]
[381414354,1756188633572,-500.0,0.00015199,2]
[381414355,1756188633582,-500.0,0.00015199,2]
[381414356,1756188633592,-621.76345598,0.00015199,2]
[381414357,1756188633601,-264.93838518,0.00015199,2]
[381414358,1756188633611,-500.0,0.00015199,2]
[381414359,1756188633620,-500.0,0.00015199,2]
[381414360,1756188633630,-346.86260622,0.00015199,2]
[381414361,1756188633640,-500.0,0.00015199,2]
[381414362,1756188633650,-500.0,0.00015199,2]
[381414363,1756188633659,-500.0,0.00015199,2]
[381414364,1756188633669,-500.0,0.00015199,2]
[381414365,1756188633679,-500.0,0.00015199,2]
[381414366,1756188633689,-500.0,0.00015199,2]
[381414367,1756188633699,-500.0,0.00015199,2]
[381414368,1756188633708,-500.0,0.00015199,2]
[381414369,1756188633718,-500.0,0.00015199,2]
[381414370,1756188633728,-123865.78373537,0.000152,3]
[381414371,1756188638207,-1121387.37963463,0.000152,3]
[381414372,1756188638216,-5160.52,0.000152,2]
[381414373,1756188638225,-322.6107,0.00015215,2]
[381414374,1756188638235,-695.39793187,0.00015215,2]
[381414375,1756188638244,-437.70178473,0.00015215,2]
[381414376,1756188638253,-200.0,0.00015215,2]
[381414377,1756188638263,-500.0,0.00015215,2]
[381414378,1756188638272,-157.371047,0.00015215,2]
[381414379,1756188638281,-151.0,0.00015215,2]
[381414380,1756188638291,-152.56977486,0.00015215,2]
[381414381,1756188638300,-300.0,0.00015215,2]
[381414382,1756188638309,-1000.0,0.00015215,2]
[381414383,1756188638318,-1000.0,0.00015215,2]
[381414384,1756188638327,-1000.0,0.00015215,2]
[381414385,1756188638337,-1000.0,0.00015215,2]
[381414386,1756188638346,-1000.0,0.00015215,2]
[381414387,1756188638356,-175.3,0.00015225,2]
[381414388,1756188638365,-500.0,0.0001527,2]
[381414390,1756188638374,-500.0,0.00015325,2]
[381414392,1756188638383,-429.57579263,0.00015342,2]
[381414393,1756188638392,-975.29321228,0.00015359,2]
[381414394,1756188638402,-500.0,0.0001538,2]
[381414395,1756188638411,-500.0,0.00015435,2]
[381414396,1756188638420,-552.42508,0.0001549,2]
[381414398,1756188638430,-150.0,0.0001551,2]
[381414399,1756188638439,-429.57579263,0.00015569,2]
[381414401,1756188638448,-168.0,0.00015592,2]
[381414403,1756188638457,-975.29321228,0.00015619,2]
[381414406,1756188638467,-348.0,0.00015651,2]
[381414407,1756188638476,-300.0,0.00015678,2]
[381414409,1756188638486,-200.0,0.00015763,2]
[381414411,1756188638495,-152.41643363,0.00015763,2]
[381414413,1756188638504,-168.0,0.00015765,2]
[381414416,1756188638514,-168.0,0.00015779,2]
[381414417,1756188638523,-357.0,0.0001578,2]
[381414420,1756188638533,-429.57579263,0.00015797,2]
[381414422,1756188638542,-168.0,0.00015802,2]
[381414424,1756188638551,-348.0,0.00015859,2]
[381414426,1756188638560,-168.0,0.00015876,2]
[381414427,1756188638569,-975.29321228,0.00015878,2]
[381414429,1756188638579,-168.0,0.00015882,2]
[381414431,1756188638587,-168.0,0.00015944,2]
[381414434,1756188638597,-458.7662338,0.00016,3]
[381414436,1756188638606,-429.57579263,0.00016024,2]
[381414438,1756188638615,-255.0,0.00016035,2]
[381414439,1756188638625,-469.3,0.00016082,2]
[381414441,1756188638634,-1159.41,0.00016082,2]
[381414443,1756188638643,-938.6,0.00016082,2]
[381414445,1756188638653,-469.3,0.00016082,2]
[381414447,1756188638662,-469.3,0.00016082,2]
[381414449,1756188638671,-469.3,0.00016082,2]
[381414451,1756188638680,-9999.99,0.00016116,2]
[381414454,1756188638689,-168.0,0.00016117,2]
[381414456,1756188638699,-975.29321228,0.00016137,2]
[381414458,1756188638708,-168.0,0.00016139,2]
[381414459,1756188638717,-168.0,0.00016201,2]
[381414461,1756188638726,-168.0,0.00016206,2]
[381414463,1756188638735,-168.0,0.00016245,2]
[381414465,1756188638744,-429.57579263,0.00016251,2]
[381414467,1756188638753,-420.0,0.00016327,2]
[381414469,1756188638762,-1000.0,0.00016338,2]
[381414471,1756188638771,-2500.0,0.00016338,2]
[381414473,1756188638781,-300.0,0.00016356,2]
[381414475,1756188638790,-173.79,0.00016356,2]
[381414477,1756188638800,-165.35,0.00016356,2]
[381414479,1756188638809,-539.77,0.00016356,2]
[381414481,1756188638818,-1185.82,0.00016356,2]
[381414483,1756188638827,-150.0,0.00016356,2]
[381414485,1756188638837,-150.0,0.00016356,2]
[381414488,1756188638846,-1079.54,0.00016356,2]
[381414489,1756188638855,-347.58,0.00016356,2]
[381414492,1756188638864,-300.0,0.00016356,2]
[381414493,1756188638873,-300.0,0.00016356,2]
[381414496,1756188638883,-173.79,0.00016356,2]
[381414497,1756188638892,-150.0,0.00016356,2]
[381414499,1756188638902,-1185.82,0.00016356,2]
[381414501,1756188638911,-408.65,0.00016356,2]
[381414503,1756188638921,-539.77,0.00016356,2]
[381414505,1756188638930,-150.0,0.00016356,2]
[381414507,1756188638940,-150.0,0.00016356,2]
[381414509,1756188638949,-150.0,0.00016356,2]
[381414511,1756188638958,-150.0,0.00016356,2]
[381414513,1756188638967,-539.77,0.00016356,2]
[381414515,1756188638976,-173.79,0.00016356,2]
[381414517,1756188638985,-1185.82,0.00016356,2]
[381414519,1756188638993,-408.65,0.00016356,2]
[381414521,1756188639003,-150.0,0.00016356,2]
[381414523,1756188639012,-1185.82,0.00016356,2]
[381414525,1756188639022,-173.79,0.00016356,2]
[381414527,1756188639031,-408.65,0.00016356,2]
[381414529,1756188639040,-539.77,0.00016356,2]
[381414531,1756188639050,-150.0,0.00016356,2]
[381414533,1756188639059,-277.35679052,0.0001636,2]
[381414535,1756188639068,-178.41,0.00016396,2]
[381414537,1756188639078,-975.29321228,0.00016397,2]
[381414539,1756188639087,-709.07639078,0.0001642,2]
[381414541,1756188639096,-348.0,0.00016435,2]
[381414543,1756188639110,-2192.0,0.00016438,2]
[381414545,1756188639119,-400.0,0.00016438,2]
[381414548,1756188639133,-400.0,0.00016438,2]
[381414549,1756188639142,-400.0,0.00016438,2]
[381414551,1756188639151,-847.88,0.00016438,2]
[381414553,1756188639161,-400.0,0.00016438,2]
[381414555,1756188639171,-488.85,0.00016438,2]
[381414558,1756188639180,-400.0,0.00016438,2]
[381414560,1756188639189,-400.0,0.00016438,2]
[381414562,1756188639198,-893.94,0.00016438,2]
[381414563,1756188639207,-683.47,0.00016438,2]
[381414565,1756188639216,-400.0,0.00016438,2]
[381414567,1756188639226,-400.0,0.00016438,2]
[381414569,1756188639235,-732.2,0.00016438,2]
[381414571,1756188639244,-400.0,0.00016438,2]
[381414573,1756188639254,-400.0,0.00016438,2]
[381414575,1756188639263,-400.0,0.00016438,2]
[381414577,1756188639272,-400.0,0.00016438,2]
[381414579,1756188639281,-400.70960625,0.00016438,2]
[381414581,1756188639291,-660.53,0.00016438,2]
[381414583,1756188639301,-400.0,0.00016438,2]
[381414586,1756188639317,-400.0,0.00016438,2]
[381414588,1756188639327,-400.0,0.00016438,2]
[381414590,1756188639337,-427.05,0.00016438,2]
[381414592,1756188639347,-407.2,0.00016438,2]
[381414594,1756188639356,-554.81,0.00016438,2]
[381414596,1756188639365,-400.0,0.00016438,2]
[381414598,1756188639374,-400.0,0.00016438,2]
[381414600,1756188639384,-400.0,0.00016438,2]
[381414602,1756188639393,-548.1,0.00016438,2]
[381414604,1756188639402,-400.0,0.00016438,2]
[381414606,1756188639411,-400.0,0.00016438,2]
[381414608,1756188639420,-571.38,0.00016438,2]
[381414610,1756188639429,-890.6,0.00016438,2]
[381414611,1756188639439,-204.12879504,0.00016438,2]
[381414614,1756188639448,-450.95,0.00016438,2]
[381414616,1756188639458,-546.7,0.00016438,2]
[381414618,1756188639467,-507.34,0.00016438,2]
[381414620,1756188639477,-400.0,0.00016438,2]
[381414622,1756188639486,-991.23,0.00016438,2]
[381414624,1756188639495,-400.0,0.00016438,2]
[381414626,1756188639505,-400.0,0.00016438,2]
[381414628,1756188639514,-400.0,0.00016438,2]
[381414630,1756188639523,-586.41,0.00016438,2]
[381414632,1756188639532,-502.81,0.00016438,2]
[381414634,1756188639542,-400.0,0.00016438,2]
[381414636,1756188639551,-400.0,0.00016438,2]
[381414638,1756188639560,-400.0,0.00016438,2]
[381414640,1756188639569,-400.0,0.00016438,2]
[381414642,1756188639579,-533.65,0.00016438,2]
[381414644,1756188639588,-401.79393068,0.00016438,2]
[381414646,1756188639597,-400.0,0.00016438,2]
[381414648,1756188639607,-400.0,0.00016438,2]
[381414650,1756188639616,-747.11,0.00016438,2]
[381414652,1756188639625,-400.0,0.00016438,2]
[381414654,1756188639635,-400.0,0.00016438,2]
[381414656,1756188639644,-400.0,0.00016438,2]
[381414657,1756188639653,-161.325453,0.00016438,2]
[381414658,1756188639663,-400.0,0.00016438,2]
[381414659,1756188639673,-400.0,0.00016438,2]
[381414660,1756188639682,-949.76,0.00016438,2]
[381414661,1756188639691,-308.571121,0.00016438,2]
[381414662,1756188639701,-877.0,0.00016438,2]
[381414663,1756188639710,-763.8,0.00016438,2]
[381414664,1756188639720,-400.0,0.00016438,2]
[381414665,1756188639729,-626.61,0.00016438,2]
[381414666,1756188639738,-400.0,0.00016438,2]
[381414667,1756188639748,-400.0,0.00016438,2]
[381414668,1756188639757,-657.61,0.00016438,2]
[381414669,1756188639767,-400.0,0.00016438,2]
[381414670,1756188639777,-715.24,0.00016438,2]
[381414671,1756188639787,-1391.82,0.00016438,2]
[381414672,1756188639796,-400.0,0.00016438,2]
[381414673,1756188639806,-810.97,0.00016438,2]
[381414674,1756188639815,-685.41,0.00016438,2]
[381414675,1756188639824,-400.0,0.00016438,2]
[381414676,1756188639833,-636.02,0.00016438,2]
[381414677,1756188639843,-752.49,0.00016438,2]
[381414678,1756188639853,-400.0,0.00016438,2]
[381414679,1756188639862,-654.24,0.00016438,2]
[381414680,1756188639871,-183.962533,0.00016438,2]
[381414681,1756188639881,-400.0,0.00016438,2]
[381414682,1756188639890,-969.6,0.00016438,2]
[381414683,1756188639899,-400.0,0.00016438,2]
[381414684,1756188639909,-771.95,0.00016438,2]
[381414685,1756188639918,-400.0,0.00016438,2]
[381414686,1756188639927,-329.138385,0.00016438,2]
[381414687,1756188639939,-678.29,0.00016438,2]
[381414688,1756188639949,-400.0,0.00016438,2]
[381414689,1756188639960,-400.0,0.00016438,2]
[381414690,1756188639971,-400.0,0.00016438,2]
[381414691,1756188639982,-400.0,0.00016438,2]
[381414692,1756188639993,-782.88,0.00016438,2]
[381414693,1756188640003,-400.0,0.00016438,2]
[381414694,1756188640013,-400.0,0.00016438,2]
[381414695,1756188640024,-400.0,0.00016438,2]
[381414696,1756188640036,-400.0,0.00016438,2]
[381414697,1756188640045,-663.92,0.00016438,2]
[381414698,1756188640055,-958.85,0.00016438,2]
[381414699,1756188640066,-686.49,0.00016438,2]
[381414700,1756188640076,-1409.901953,0.00016438,2]
[381414701,1756188640087,-400.0,0.00016438,2]
[381414702,1756188640096,-796.82,0.00016438,2]
[381414703,1756188640107,-400.0,0.00016438,2]
[381414704,1756188640117,-590.76,0.00016438,2]
[381414705,1756188640126,-908.49,0.00016438,2]
[381414706,1756188640135,-400.0,0.00016438,2]
[381414707,1756188640144,-400.0,0.00016438,2]
[381414708,1756188640154,-400.0,0.00016438,2]
[381414709,1756188640163,-153.535972,0.00016438,2]
[381414710,1756188640172,-400.0,0.00016438,2]
[381414711,1756188640183,-158.428713,0.00016438,2]
[381414712,1756188640193,-425.83,0.00016438,2]
[381414713,1756188640202,-400.0,0.00016438,2]
[381414714,1756188640211,-919.98,0.00016438,2]
[381414715,1756188640222,-600.55,0.00016438,2]
[381414716,1756188640231,-400.0,0.00016438,2]
[381414717,1756188640240,-400.0,0.00016438,2]
[381414718,1756188640250,-400.0,0.00016438,2]
[381414719,1756188640259,-633.39,0.00016438,2]
[381414720,1756188640269,-400.0,0.00016438,2]
[381414721,1756188640279,-400.0,0.00016438,2]
[381414722,1756188640288,-400.0,0.00016438,2]
[381414723,1756188640298,-410.99,0.00016438,2]
[381414724,1756188640308,-623.31,0.00016438,2]
[381414725,1756188640317,-401.16947058,0.00016438,2]
[381414726,1756188640326,-400.0,0.00016438,2]
[381414727,1756188640337,-400.0,0.00016438,2]
[381414728,1756188640347,-400.0,0.00016438,2]
[381414729,1756188640358,-400.0,0.00016438,2]
[381414730,1756188640368,-400.0,0.00016438,2]
[381414731,1756188640377,-400.0,0.00016438,2]
[381414732,1756188640387,-400.0,0.00016438,2]
[381414733,1756188640396,-605.53,0.00016438,2]
[381414734,1756188640406,-400.0,0.00016438,2]
[381414735,1756188640415,-400.0,0.00016438,2]
[381414736,1756188640424,-400.0,0.00016438,2]
[381414737,1756188640434,-516.93,0.00016438,2]
[381414738,1756188640443,-400.0,0.00016438,2]
[381414739,1756188640453,-234.7190828,0.00016438,2]
[381414740,1756188640463,-400.0,0.00016438,2]
[381414741,1756188640472,-400.0,0.00016438,2]
[381414742,1756188640482,-400.0,0.00016438,2]
[381414743,1756188640491,-400.7859602,0.00016438,2]
[381414744,1756188640502,-400.0,0.00016438,2]
[381414745,1756188640512,-659.59,0.00016438,2]
[381414746,1756188640521,-400.0,0.00016438,2]
[381414747,1756188640530,-400.0,0.00016438,2]
[381414748,1756188640540,-400.0,0.00016438,2]
[381414750,1756188640550,-515.66,0.00016438,2]
[381414751,1756188640559,-400.0,0.00016438,2]
[381414752,1756188640569,-400.0,0.00016438,2]
[381414753,1756188640579,-400.0,0.00016438,2]
[381414754,1756188640588,-400.0,0.00016438,2]
[381414755,1756188640598,-400.0,0.00016438,2]
[381414756,1756188640607,-400.0,0.00016438,2]
[381414757,1756188640616,-848.23,0.00016438,2]
[381414758,1756188640625,-485.4,0.00016438,2]
[381414759,1756188640635,-794.04,0.00016438,2]
[381414760,1756188640645,-400.0,0.00016438,2]
[381414761,1756188640654,-400.0,0.00016438,2]
[381414762,1756188640664,-400.0,0.00016438,2]
[381414763,1756188640673,-400.0,0.00016438,2]
[381414764,1756188640683,-566.81,0.00016438,2]
[381414765,1756188640692,-407.58,0.00016438,2]
[381414766,1756188640702,-400.0,0.00016438,2]
[381414767,1756188640711,-400.0,0.00016438,2]
[381414768,1756188640720,-400.0,0.00016438,2]
[381414769,1756188640730,-432.92,0.00016438,2]
[381414770,1756188640739,-1265.09,0.00016438,2]
[381414771,1756188640748,-400.0,0.00016438,2]
[381414772,1756188640758,-400.0,0.00016438,2]
[381414773,1756188640767,-400.0,0.00016438,2]
[381414774,1756188640777,-527.89,0.00016438,2]
[381414775,1756188640787,-400.0,0.00016438,2]
[381414776,1756188640798,-412.51,0.00016438,2]
[381414777,1756188641200,-499.0,0.00016438,2]
[381414778,1756188641238,-638.2,0.00016438,2]
[381414779,1756188641248,-400.0,0.00016438,2]
[381414780,1756188641257,-400.0,0.00016438,2]
[381414781,1756188641267,-400.0,0.00016438,2]
[381414782,1756188641277,-400.0,0.00016438,2]
[381414783,1756188641287,-400.0,0.00016438,2]
[381414784,1756188641297,-400.0,0.00016438,2]
[381414785,1756188641306,-400.0,0.00016438,2]
[381414786,1756188641316,-400.0,0.00016438,2]
[381414787,1756188641325,-400.0,0.00016438,2]
[381414788,1756188641335,-400.0,0.00016438,2]
[381414789,1756188641344,-400.0,0.00016438,2]
[381414790,1756188641354,-400.0,0.00016438,2]
[381414791,1756188641364,-400.0,0.00016438,2]
[381414792,1756188641373,-409.82,0.00016438,2]
[381414793,1756188641383,-633.42,0.00016438,2]
[381414794,1756188641392,-400.0,0.00016438,2]
[381414795,1756188641403,-1055.35,0.00016438,2]
[381414796,1756188641412,-508.67,0.00016438,2]
[381414797,1756188641422,-1161.92,0.00016438,2]
[381414798,1756188641432,-673.5,0.00016438,2]
[381414799,1756188641442,-400.0,0.00016438,2]
[381414800,1756188641452,-509.97265723,0.00016438,2]
[381414801,1756188641461,-400.0,0.00016438,2]
[381414802,1756188641470,-400.0,0.00016438,2]
[381414803,1756188641480,-400.0,0.00016438,2]
[381414804,1756188641489,-953.71,0.00016438,2]
[381414805,1756188641499,-508.77,0.00016438,2]
[381414806,1756188641508,-400.0,0.00016438,2]
[381414807,1756188641519,-580.77,0.00016438,2]
[381414808,1756188641528,-400.0,0.00016438,2]
[381414809,1756188641537,-400.0,0.00016438,2]
[381414810,1756188641547,-400.0,0.00016438,2]
[381414811,1756188641557,-1384.6,0.00016438,2]
[381414812,1756188641567,-425.82,0.00016438,2]
[381414813,1756188641576,-561.44,0.00016438,2]
[381414814,1756188641586,-519.74,0.00016438,2]
[381414815,1756188641596,-400.0,0.00016438,2]
[381414816,1756188641606,-600.92,0.00016438,2]
[381414817,1756188641616,-1703.78,0.00016438,2]
[381414818,1756188641625,-463.24,0.00016438,2]
[381414819,1756188641635,-400.0,0.00016438,2]
[381414820,1756188641645,-922.72,0.00016438,2]